bitfinex/quotes_BTCUSD_20250316
["timestamp","ask_amount","ask_price","bid_price","bid_amount"]
[1742095061299,0.04924488,84282.0,84281.0,0.03127722]
[1742095063592,0.00041444,84282.0,84281.0,0.03127722]
[1742095064660,0.00041444,84282.0,84281.0,0.73127722]
[1742095066211,0.00041444,84282.0,84281.0,0.03127722]
[1742095066414,0.00058374,84282.0,84281.0,0.03127722]
[1742095068289,0.00058374,84282.0,84281.0,0.73127722]
[1742095073130,0.00058374,84282.0,84281.0,0.78471722]
[1742095074299,0.00058374,84282.0,84281.0,0.77871722]
[1742095074628,0.00058374,84282.0,84281.0,1.48471722]
[1742095075038,0.00058374,84282.0,84281.0,1.47871722]
[1742095075266,0.00058374,84282.0,84281.0,1.47271722]
[1742095075580,0.00058374,84282.0,84281.0,1.48471722]
[1742095075775,0.00058374,84282.0,84281.0,1.47871722]
[1742095076217,0.00058374,84282.0,84281.0,1.48471722]
[1742095077796,0.00058374,84282.0,84281.0,1.48505582]
[1742095093019,0.00058374,84282.0,84281.0,1.61673582]
[1742095100875,0.00058374,84282.0,84281.0,1.60487082]
[1742095101414,0.00058374,84282.0,84281.0,1.61673582]
[1742095101853,0.00058374,84282.0,84281.0,1.61073582]
[1742095102008,0.00058374,84282.0,84281.0,0.90473582]
[1742095102454,0.00058374,84282.0,84281.0,0.91073582]
[1742095102843,0.00058374,84282.0,84281.0,0.91673582]
[1742095107592,0.00058374,84282.0,84281.0,0.90487082]
[1742095108021,0.00058374,84282.0,84281.0,0.91673582]
[1742095113451,0.00058374,84282.0,84281.0,0.90487082]
[1742095114261,0.00058374,84282.0,84281.0,0.91673582]
[1742095114466,0.00058374,84282.0,84281.0,0.78505582]
[1742095114830,0.00058374,84282.0,84281.0,0.91673582]
[1742095120966,0.00058374,84282.0,84281.0,0.16329582]
[1742095128678,0.00058374,84282.0,84281.0,0.86329582]
[1742095131849,0.00058374,84282.0,84281.0,0.98969582]
[1742095132567,0.00058374,84282.0,84281.0,0.98369582]
[1742095133043,0.00058374,84282.0,84281.0,0.98969582]
[1742095133269,0.00058374,84282.0,84281.0,0.98369582]
[1742095133459,0.00058374,84282.0,84281.0,0.97769582]
[1742095133771,0.00058374,84282.0,84281.0,0.98369582]
[1742095134520,0.00058374,84282.0,84281.0,0.98969582]
[1742095135715,0.00058374,84282.0,84281.0,0.98369582]
[1742095135919,0.00058374,84282.0,84281.0,0.98969582]
[1742095141252,0.00058374,84282.0,84281.0,0.98965582]
[1742095173768,0.00058374,84282.0,84281.0,1.74301582]
[1742095190348,0.00058374,84282.0,84281.0,1.48497582]
[1742095190626,0.00058374,84282.0,84281.0,1.61657582]
[1742095197912,0.00058374,84282.0,84281.0,1.47311082]
[1742095198110,0.08188374,84282.0,84281.0,1.60471082]
[1742095198357,0.08188374,84282.0,84281.0,0.90471082]
[1742095198965,0.08188374,84282.0,84281.0,0.89271082]
[1742095199117,0.08188374,84282.0,84281.0,0.89871082]
[1742095199314,0.08188374,84282.0,84281.0,0.90471082]
[1742095200528,0.09374774,84282.0,84281.0,0.90471082]
[1742095201141,0.11234779,84282.0,84281.0,0.90471082]
[1742095201349,0.11234779,84282.0,84281.0,0.89871082]
[1742095201862,0.12426349,84282.0,84281.0,0.90471082]
[1742095202086,0.17286349,84282.0,84281.0,0.77311082]
[1742095202290,0.56608324,84282.0,84281.0,0.01975082]
[1742095202490,0.56608324,84282.0,84281.0,0.0123386]
[1742095202668,0.47286349,84282.0,84281.0,0.0123386]
[1742095203219,0.47286349,84282.0,84281.0,0.0003386]
[1742095204576,0.47286349,84282.0,84281.0,0.0043386]
[1742095204771,0.47286349,84282.0,84281.0,0.0023386]
[1742095205179,0.47286349,84282.0,84281.0,0.0003386]
[1742095208261,0.45426344,84282.0,84281.0,0.0003386]
[1742095211598,0.47286773,84282.0,84281.0,0.0003386]
[1742095212079,0.011867,84263.0,84262.0,0.1159386]
[1742095212488,0.011867,84263.0,84262.0,0.12285112]
[1742095213107,0.56782379,84263.0,84262.0,0.00691252]
[1742095213329,0.56782379,84263.0,84262.0,0.004]
[1742095213583,0.549219,84263.0,84262.0,0.01091251]
[1742095213763,0.549219,84263.0,84262.0,0.004]
[1742095213916,0.549219,84263.0,84262.0,0.01091251]
[1742095214249,0.549219,84263.0,84262.0,0.01491251]
[1742095214767,0.549219,84263.0,84262.0,0.00691251]
[1742095214960,0.549219,84263.0,84262.0,0.00891251]
[1742095215186,0.549219,84263.0,84262.0,0.004]
[1742095215361,0.549219,84263.0,84262.0,0.01091251]
[1742095215593,0.549219,84263.0,84262.0,0.004]
[1742095215769,0.549219,84263.0,84262.0,0.01091251]
[1742095215952,0.549219,84263.0,84262.0,0.004]
[1742095216158,0.549219,84263.0,84262.0,0.01091251]
[1742095216352,0.549219,84263.0,84262.0,0.004]
[1742095216536,0.5678251,84263.0,84262.0,0.01091251]
[1742095217087,0.5678251,84263.0,84262.0,0.01125131]
[1742095221179,0.3186061,84263.0,84262.0,0.01125131]
[1742095221594,0.0186061,84263.0,84262.0,0.02311831]
[1742095221796,0.249175,84278.0,84268.0,0.011866]
[1742095221797,0.237312,84278.0,84268.0,0.011866]
[1742095221998,0.3,84276.0,84269.0,0.368974]
[1742095222334,0.3,84276.0,84270.0,0.00690577]
[1742095222561,0.4179,84279.0,84270.0,0.00690577]
[1742095222768,0.249174,84278.0,84273.0,0.237321]
[1742095223114,0.249174,84278.0,84271.0,0.237329]
[1742095223115,0.237315,84276.0,84271.0,0.237329]
[1742095223391,0.311865,84277.0,84272.0,0.237324]
[1742095223659,0.311865,84277.0,84272.0,0.24422784]
[1742095223856,0.3,84277.0,84273.0,0.237321]
[1742095224335,0.3,84277.0,84274.0,0.0069019]
[1742095224712,0.3,84277.0,84273.0,0.237321]
[1742095224895,0.3,84277.0,84274.0,0.0069019]
[1742095225094,0.3,84279.0,84274.0,0.011866]
[1742095225297,0.3,84279.0,84277.0,0.237309]
[1742095225635,0.3,84279.0,84278.0,0.00689803]
[1742095225984,0.31860223,84279.0,84278.0,0.00689803]
[1742095226194,0.31860223,84279.0,84276.0,0.237313]
[1742095226548,0.01860223,84279.0,84277.0,0.008899]
[1742095226772,0.01860223,84279.0,84278.0,0.237309]
[1742095227104,0.01860223,84279.0,84278.0,0.25607203]
[1742095227346,0.30058374,84282.0,84281.0,0.237301]
[1742095227347,0.00058374,84282.0,84281.0,0.237301]
[1742095227731,0.00058374,84282.0,84281.0,0.24419445]
[1742095228680,0.00058374,84282.0,84281.0,0.24919445]
[1742095229128,0.00058374,84282.0,84281.0,0.26105945]
[1742095230171,0.00058374,84282.0,84281.0,0.33675945]
[1742095230790,0.00058374,84282.0,84281.0,0.34175945]
[1742095231001,0.00058374,84282.0,84281.0,0.33675945]
[1742095231587,0.00058374,84282.0,84281.0,0.33775945]
[1742095231788,0.01918342,84282.0,84281.0,0.34375945]
[1742095232125,0.01918342,84282.0,84281.0,0.33175945]
[1742095232469,0.01918342,84282.0,84281.0,0.25019445]
[1742095232691,0.01918342,84282.0,84281.0,0.25605945]
[1742095233714,0.01918342,84282.0,84281.0,0.26205945]
[1742095235020,0.01918342,84282.0,84281.0,0.26805945]
[1742095235955,0.01918342,84282.0,84281.0,0.25619445]
[1742095237922,0.01918342,84282.0,84281.0,0.26805945]
[1742095241571,0.01918342,84282.0,84281.0,0.31485945]
[1742095241957,0.01918342,84282.0,84281.0,0.39105945]
[1742095242367,0.01918342,84282.0,84281.0,0.40321077]
[1742095244738,0.01918342,84282.0,84281.0,0.39105945]
[1742095246679,0.01918342,84282.0,84281.0,0.40294863]
[1742095248118,0.01918342,84282.0,84281.0,1.10294863]
[1742095248848,0.00058374,84282.0,84281.0,1.10294863]
[1742095249049,0.00058374,84282.0,84281.0,1.08505945]
[1742095249276,0.00058374,84282.0,84281.0,1.09105945]
[1742095249484,0.00058374,84282.0,84281.0,1.08505945]
[1742095250055,0.00058374,84282.0,84281.0,1.10268053]
[1742095250257,0.00058374,84282.0,84281.0,1.09668053]
[1742095250890,0.00058374,84282.0,84281.0,1.10268053]
[1742095251875,0.01918251,84282.0,84281.0,1.10268053]
[1742095255184,0.01918251,84282.0,84281.0,1.09105945]
[1742095256466,0.01918251,84282.0,84281.0,0.39105945]
[1742095259492,0.01918251,84282.0,84281.0,1.09105945]
[1742095259693,0.01918251,84282.0,84281.0,1.84445945]
[1742095261991,0.01918251,84282.0,84281.0,1.72145945]
[1742095271318,0.01918251,84282.0,84281.0,1.85301945]
[1742095274336,0.01918251,84282.0,84281.0,1.92881945]
[1742095286687,0.01918251,84282.0,84281.0,1.97451945]
[1742095286898,0.01918251,84282.0,84281.0,1.96251945]
[1742095287069,0.01918251,84282.0,84281.0,1.96851945]
[1742095287271,0.01918251,84282.0,84281.0,1.85301945]
[1742095288590,0.01918251,84282.0,84281.0,1.84701945]
[1742095289115,0.01918251,84282.0,84281.0,1.85301945]
[1742095289274,0.01918251,84282.0,84281.0,1.84701945]
[1742095289986,0.01918251,84282.0,84281.0,1.85301945]
[1742095309397,0.03104651,84282.0,84281.0,0.77229345]
[1742095309554,0.01244774,84282.0,84281.0,0.90385345]
[1742095310167,0.01244774,84282.0,84281.0,0.89785345]
[1742095310732,0.01244774,84282.0,84281.0,0.90285345]
[1742095311647,0.00058374,84282.0,84281.0,0.89685345]
[1742095311851,0.00058374,84282.0,84281.0,0.90085345]
[1742095312839,0.01918354,84282.0,84281.0,0.90085345]
[1742095313172,0.03129996,84282.0,84281.0,0.90085345]
[1742095313371,0.01918354,84282.0,84281.0,0.90085345]
[1742095313501,0.01918354,84282.0,84281.0,0.76929345]
[1742095313701,0.01918354,84282.0,84281.0,0.90085345]
[1742095314900,0.03094485,84282.0,84281.0,0.90085345]
[1742095317009,0.01918354,84282.0,84281.0,0.90085345]
[1742095320777,0.41264754,84282.0,84281.0,0.76929345]
[1742095320978,0.41264754,84282.0,84281.0,0.90085345]
[1742095321861,0.46054754,84282.0,84281.0,0.76929345]
[1742095322004,0.44194774,84282.0,84281.0,0.76429345]
[1742095322467,0.44194774,84282.0,84281.0,0.76829345]
[1742095322846,0.44194774,84282.0,84281.0,0.76029345]
[1742095323144,0.44194774,84282.0,84281.0,0.76629345]
[1742095325110,0.46054861,84282.0,84281.0,0.76629345]
[1742095327075,0.46054861,84282.0,84281.0,0.01289345]
[1742095327879,0.46054861,84282.0,84281.0,0.006]
[1742095334246,0.37894861,84282.0,84281.0,0.006]
[1742095335542,0.37894861,84282.0,84281.0,0.01448902]
[1742095335747,0.37894861,84282.0,84281.0,0.006]
[1742095342799,0.33104861,84282.0,84281.0,0.006]
[1742095347916,0.33104861,84282.0,84281.0,0.0141924]
[1742095348105,0.33104861,84282.0,84281.0,0.006]
[1742095349817,0.01918461,84282.0,84281.0,0.006]
[1742095350020,0.01918461,84282.0,84281.0,0.243301]
[1742095350225,0.00058374,84282.0,84281.0,0.006]
[1742095350429,0.00058374,84282.0,84281.0,0.01419267]
[1742095351578,0.00058374,84282.0,84281.0,0.02305767]
[1742095351783,0.00058374,84282.0,84281.0,0.10855767]
[1742095352602,0.00058374,84282.0,84281.0,0.15465767]
[1742095352804,0.00058374,84282.0,84281.0,0.15165767]
[1742095353207,0.01918295,84282.0,84281.0,0.15165767]
[1742095353842,0.01918295,84282.0,84281.0,0.15665767]
[1742095354044,0.01918295,84282.0,84281.0,0.15365767]
[1742095354185,0.01918295,84282.0,84281.0,0.15865767]
[1742095354578,0.01918295,84282.0,84281.0,0.15365767]
[1742095355376,0.01918295,84282.0,84281.0,0.14865767]
[1742095356019,0.01918295,84282.0,84281.0,0.85365767]
[1742095356535,0.01918295,84282.0,84281.0,0.84865767]
[1742095356810,0.01918295,84282.0,84281.0,0.85465767]
[1742095358033,0.01918295,84282.0,84281.0,0.85965767]
[1742095358504,0.01918295,84282.0,84281.0,0.85465767]
[1742095358705,0.01918295,84282.0,84281.0,0.86065767]
[1742095359090,0.01918295,84282.0,84281.0,0.88489944]
[1742095360160,0.01918295,84282.0,84281.0,0.86065767]
[1742095362474,0.00058374,84282.0,84281.0,0.86065767]
[1742095363674,0.00042674,84282.0,84281.0,0.86065767]
[1742095364067,0.00042674,84282.0,84281.0,0.84865767]
[1742095364479,0.00042674,84282.0,84281.0,0.85465767]
[1742095364966,0.00042674,84282.0,84281.0,0.86065767]
[1742095365367,0.01902458,84282.0,84281.0,1.61405767]
[1742095367752,0.01902458,84282.0,84281.0,1.74561767]
[1742095377812,0.01902458,84282.0,84281.0,1.74595647]
[1742095385639,0.00042674,84282.0,84281.0,1.74595647]
[1742095385891,0.00042674,84282.0,84281.0,1.73995647]
[1742095386095,0.00042674,84282.0,84281.0,1.74595647]
[1742095386448,0.00042674,84282.0,84281.0,1.73995647]
[1742095386657,0.00042674,84282.0,84281.0,1.73395647]
[1742095386838,0.00042674,84282.0,84281.0,1.75620049]
[1742095387069,0.00042674,84282.0,84281.0,1.76220049]
[1742095387269,0.00042674,84282.0,84281.0,1.76820049]
[1742095387669,0.00042674,84282.0,84281.0,1.76220049]
[1742095387872,0.00042674,84282.0,84281.0,1.76820049]
[1742095396851,0.00042674,84282.0,84281.0,1.63664049]
[1742095397053,0.00042674,84282.0,84281.0,1.63956049]
[1742095398225,0.00042674,84282.0,84281.0,1.62756049]
[1742095398432,0.00042674,84282.0,84281.0,1.63356049]
[1742095398631,0.00042674,84282.0,84281.0,1.63956049]
[1742095398836,0.00042674,84282.0,84281.0,1.61731647]
[1742095401076,0.00042674,84282.0,84281.0,1.63954306]
[1742095401970,0.00042674,84282.0,84281.0,1.61731647]
[1742095402826,0.00042674,84282.0,84281.0,1.48579647]
[1742095403077,0.00042674,84282.0,84281.0,1.61131647]
[1742095403277,0.00042674,84282.0,84281.0,1.61731647]
[1742095403476,0.00042674,84282.0,84281.0,1.61131647]
[1742095403642,0.00042674,84282.0,84281.0,1.61731647]
[1742095403844,0.00042674,84282.0,84281.0,1.47979647]
[1742095404175,0.00042674,84282.0,84281.0,1.60531647]
[1742095404406,0.00042674,84282.0,84281.0,1.61131647]
[1742095405752,0.00042674,84282.0,84281.0,1.61731647]
[1742095412198,0.00042674,84282.0,84281.0,1.48579647]
[1742095412401,0.00042674,84282.0,84281.0,1.61731647]
[1742095419120,0.00042674,84282.0,84281.0,1.69611647]
[1742095420147,0.00042674,84282.0,84281.0,1.69011647]
[1742095420927,0.00042674,84282.0,84281.0,1.69611647]
[1742095421857,0.00042674,84282.0,84281.0,1.69011647]
[1742095422201,0.00042674,84282.0,84281.0,1.69611647]
[1742095438693,0.00042674,84282.0,84281.0,1.71838074]
[1742095447520,0.00042674,84282.0,84281.0,1.76568074]
[1742095448466,0.00042674,84282.0,84281.0,1.75968074]
[1742095448643,0.00042674,84282.0,84281.0,1.76568074]
[1742095449766,0.00042674,84282.0,84281.0,1.75968074]
[1742095450174,0.00042674,84282.0,84281.0,1.78022159]
[1742095450388,0.00042674,84282.0,84281.0,1.77422159]
[1742095450617,7.4e-07,84282.0,84281.0,1.77422159]
[1742095450765,7.4e-07,84282.0,84281.0,1.81733452]
[1742095450967,7.4e-07,84282.0,84281.0,1.81133452]
[1742095451283,7.4e-07,84282.0,84281.0,1.93690955]
[1742095451484,7.4e-07,84282.0,84281.0,1.93090955]
[1742095451685,7.4e-07,84282.0,84281.0,1.92490955]
[1742095452013,7.4e-07,84282.0,84281.0,1.93090955]
[1742095452192,7.4e-07,84282.0,84281.0,1.93690955]
[1742095455600,7.4e-07,84282.0,84281.0,1.87753235]
[1742095457715,7.4e-07,84282.0,84281.0,1.89977883]
[1742095458336,0.0001694,84297.0,84296.0,0.249121]
[1742095458482,0.0001694,84297.0,84296.0,1.080601]
[1742095458828,0.0001694,84297.0,84296.0,1.08850348]
[1742095459034,0.0001694,84297.0,84296.0,1.11074996]
[1742095460315,0.0001694,84297.0,84296.0,1.08850348]
[1742095460868,0.00021081,84297.0,84296.0,1.10027257]
[1742095461141,0.00021081,84297.0,84296.0,0.98079257]
[1742095461304,0.00021081,84297.0,84296.0,1.11227257]
[1742095462333,0.00021081,84297.0,84296.0,1.10627257]
[1742095462545,0.00021081,84297.0,84296.0,1.11227257]
[1742095463269,0.00021081,84297.0,84296.0,1.10627257]
[1742095463615,0.00021081,84297.0,84296.0,1.11227257]
[1742095463951,0.00021081,84297.0,84296.0,1.10627257]
[1742095464132,0.00021081,84297.0,84296.0,1.11227257]
[1742095464437,0.00021081,84297.0,84296.0,1.11827257]
[1742095465349,0.00021081,84297.0,84296.0,1.14188504]
[1742095466156,0.00021081,84297.0,84296.0,1.89508504]
[1742095466363,0.00021081,84297.0,84296.0,1.88054419]
[1742095473336,0.00021081,84297.0,84296.0,1.95584419]
[1742095474420,0.00021081,84297.0,84296.0,1.94384419]
[1742095474538,0.00021081,84297.0,84296.0,1.93784419]
[1742095474743,0.00021081,84297.0,84296.0,1.94984419]
[1742095475417,0.00021081,84297.0,84296.0,1.93784419]
[1742095475800,0.00021081,84297.0,84296.0,1.94384419]
[1742095477506,0.00021081,84297.0,84296.0,1.94984419]
[1742095488479,0.00021081,84297.0,84296.0,1.99594419]
[1742095489355,0.00021081,84297.0,84296.0,2.01048504]
[1742095489962,0.00021081,84297.0,84296.0,2.00448504]
[1742095490101,0.00021081,84297.0,84296.0,2.01048504]
[1742095490306,0.00021081,84297.0,84296.0,2.00448504]
[1742095491448,0.00021081,84297.0,84296.0,2.01048504]
[1742095491650,0.00021081,84297.0,84296.0,1.88908504]
[1742095495079,0.00021081,84297.0,84296.0,1.87454419]
[1742095496155,0.00021081,84297.0,84296.0,1.86854419]
[1742095496784,0.00021081,84297.0,84296.0,1.87454419]
[1742095497221,0.00021081,84297.0,84296.0,1.86854419]
[1742095497426,0.00021081,84297.0,84296.0,1.87454419]
[1742095502837,0.00021081,84297.0,84296.0,1.47310248]
[1742095503037,0.01207281,84297.0,84296.0,1.47310248]
[1742095503242,0.00021081,84297.0,84296.0,1.60454248]
[1742095503667,0.00021081,84297.0,84296.0,1.59854248]
[1742095504284,0.00021081,84297.0,84296.0,1.60440448]
[1742095504823,0.00021081,84297.0,84296.0,1.61040448]
[1742095505027,0.00021081,84297.0,84296.0,1.60440448]
[1742095505230,0.00021081,84297.0,84296.0,1.61040448]
[1742095505773,0.00021081,84297.0,84296.0,0.91040448]
[1742095505974,0.01880612,84297.0,84296.0,0.91040448]
[1742095506452,0.01880612,84297.0,84296.0,0.91640448]
[1742095507063,0.01880612,84297.0,84296.0,0.91040448]
[1742095507287,0.01880612,84297.0,84296.0,0.91640448]
[1742095509736,0.00021081,84297.0,84296.0,1.61640448]
[1742095510426,0.00021081,84297.0,84296.0,1.61040448]
[1742095510591,0.00021081,84297.0,84296.0,1.60440448]
[1742095510944,0.00021081,84297.0,84296.0,1.61640448]
[1742095512134,0.00021081,84297.0,84296.0,1.61644448]
[1742095512855,0.0188055,84297.0,84296.0,1.61644448]
[1742095513419,0.0188055,84297.0,84296.0,1.61044448]
[1742095513615,0.0188055,84297.0,84296.0,1.60444448]
[1742095513822,0.0188055,84297.0,84296.0,1.68964448]
[1742095514033,0.0188055,84297.0,84296.0,1.69564448]
[1742095514239,0.0188055,84297.0,84296.0,1.68364448]
[1742095514696,0.0188055,84297.0,84296.0,1.68964448]
[1742095515281,0.0188055,84297.0,84296.0,1.69564448]
[1742095520179,0.0188055,84297.0,84296.0,1.71788603]
[1742095521294,0.0188055,84297.0,84296.0,1.69564448]
[1742095523114,0.0188055,84297.0,84296.0,1.56416448]
[1742095523315,0.0188055,84297.0,84296.0,1.69564448]
[1742095523626,0.0188055,84297.0,84296.0,1.63869902]
[1742095525285,0.0188055,84297.0,84296.0,1.61644448]
[1742095534410,0.0188055,84297.0,84296.0,1.61640448]
[1742095552766,0.0188055,84297.0,84296.0,1.61635048]
[1742095558314,0.0188055,84297.0,84296.0,5.61635048]
[1742095564658,0.0188055,84297.0,84296.0,5.48491048]
[1742095565003,0.0188055,84297.0,84296.0,5.61635048]
[1742095565558,0.0188055,84297.0,84296.0,5.61668928]
[1742095582746,0.0188055,84297.0,84296.0,5.63895477]
[1742095587309,0.0188055,84297.0,84296.0,5.72135477]
[1742095588014,0.0188055,84297.0,84296.0,5.71535477]
[1742095588580,0.0188055,84297.0,84296.0,5.72135477]
[1742095592946,0.01834267,84297.0,84296.0,5.63895477]
[1742095595769,0.01834267,84297.0,84296.0,5.61668928]
[1742095596959,0.011861,84307.0,84303.0,0.237238]
[1742095597162,4.14e-05,84307.0,84303.0,0.237238]
[1742095597357,4.14e-05,84307.0,84304.0,0.00785432]
[1742095598886,4.14e-05,84307.0,84304.0,0.01385432]
[1742095599733,4.14e-05,84307.0,84304.0,0.01985432]
[1742095600436,0.0186362,84307.0,84304.0,0.01985432]
[1742095601265,0.0188056,84307.0,84304.0,0.01985432]
[1742095601565,0.2560346,84307.0,84304.0,0.01985432]
[1742095601773,0.0188056,84307.0,84305.0,0.13144]
[1742095602182,0.0188056,84307.0,84306.0,0.00785289]
[1742095604869,0.0188056,84307.0,84306.0,0.14529289]
[1742095605445,0.0188056,84307.0,84306.0,0.15129289]
[1742095613436,0.0188056,84307.0,84306.0,0.16315389]
[1742095624693,0.0002108,84307.0,84306.0,0.16315389]
[1742095625022,0.0002108,84307.0,84306.0,0.1764601]
[1742095625569,0.0002108,84307.0,84306.0,0.17527398]
[1742095626222,0.0002108,84307.0,84306.0,0.87527398]
[1742095626551,0.0002108,84307.0,84306.0,0.95527398]
[1742095627692,0.01880411,84307.0,84306.0,0.95527398]
[1742095635930,0.01880411,84307.0,84306.0,0.94315389]
[1742095636379,0.01880411,84307.0,84306.0,0.94311389]
[1742095636536,0.01880411,84307.0,84306.0,0.86311389]
[1742095637947,0.01880411,84307.0,84306.0,0.16311389]
[1742095639007,0.01880411,84307.0,84306.0,0.91631389]
[1742095639209,0.26789311,84307.0,84306.0,0.90445289]
[1742095639448,0.2492998,84307.0,84306.0,0.90445289]
[1742095640366,0.2492998,84307.0,84306.0,0.89845289]
[1742095640526,0.2492998,84307.0,84306.0,0.89245289]
[1742095640709,0.2492998,84307.0,84306.0,0.89945289]
[1742095642556,0.26789464,84307.0,84306.0,0.89945289]
[1742095643789,0.01880564,84307.0,84306.0,0.89945289]
[1742095645242,0.03066664,84307.0,84306.0,0.89945289]
[1742095645611,0.03066664,84307.0,84306.0,0.76805289]
[1742095645979,0.03066664,84307.0,84306.0,0.89945289]
[1742095651503,0.03066664,84307.0,84306.0,0.76805289]
[1742095651654,0.03066664,84307.0,84306.0,0.89945289]
[1742095653407,0.03066664,84307.0,84306.0,0.14625289]
[1742095653563,0.03066664,84307.0,84306.0,0.01485289]
[1742095653753,0.03066664,84307.0,84306.0,0.14625289]
[1742095653951,0.03066664,84307.0,84306.0,0.1384]
[1742095661943,0.03066664,84307.0,84306.0,0.14625381]
[1742095665290,0.03066664,84307.0,84306.0,0.01485381]
[1742095665491,0.03066664,84307.0,84306.0,0.14629381]
[1742095667396,0.03066664,84307.0,84306.0,0.13844]
[1742095670892,0.03066664,84307.0,84306.0,0.14629377]
[1742095680200,0.01880564,84307.0,84306.0,0.14629377]
[1742095681958,0.01880564,84307.0,84306.0,0.15815477]
[1742095682952,0.01880564,84307.0,84306.0,0.15515477]
[1742095683152,0.01880564,84307.0,84306.0,0.23365477]
[1742095683372,0.01880564,84307.0,84306.0,0.23765477]
[1742095683610,0.01880564,84307.0,84306.0,0.22965477]
[1742095684023,0.0002108,84307.0,84306.0,0.23465477]
[1742095684188,0.0002108,84307.0,84306.0,0.22965477]
[1742095684561,0.0002108,84307.0,84306.0,0.23465477]
[1742095684957,0.0002108,84307.0,84306.0,0.23865477]
[1742095685507,0.0002108,84307.0,84306.0,0.23465477]
[1742095685888,0.0002108,84307.0,84306.0,0.24065477]
[1742095686802,0.0002108,84307.0,84306.0,0.24755958]
[1742095686998,0.01880392,84307.0,84306.0,0.24755958]
[1742095687625,0.01880392,84307.0,84306.0,0.94755958]
[1742095688237,0.01880392,84307.0,84306.0,0.94165477]
[1742095691931,0.01880392,84307.0,84306.0,1.69489477]
[1742095705826,0.01880392,84307.0,84306.0,0.99489477]
[1742095715815,0.01880392,84307.0,84306.0,1.69489477]
[1742095721490,0.01880392,84307.0,84306.0,1.60453377]
[1742095722034,0.01880392,84307.0,84306.0,1.61639477]
[1742095722253,0.01880392,84307.0,84306.0,0.90453377]
[1742095722631,0.01880392,84307.0,84306.0,0.91639477]
[1742095732675,0.01880392,84307.0,84306.0,0.99839477]
[1742095746806,0.01880392,84307.0,84306.0,1.69839477]
[1742095757625,0.01880392,84307.0,84306.0,1.56695477]
[1742095757832,0.01880392,84307.0,84306.0,1.69831477]
[1742095762489,0.01880392,84307.0,84306.0,1.72169458]
[1742095762894,0.01880392,84307.0,84306.0,1.69831477]
[1742095787028,0.01880392,84307.0,84306.0,1.61631477]
[1742095787400,0.01880392,84307.0,84306.0,1.60445377]
[1742095788005,0.01880392,84307.0,84306.0,1.61631477]
[1742095788400,0.01880392,84307.0,84306.0,1.60445377]
[1742095788603,0.01880392,84307.0,84306.0,0.90445377]
[1742095795233,0.01880392,84307.0,84306.0,0.77309377]
[1742095795532,0.01880392,84307.0,84306.0,0.90445377]
[1742095796691,0.01880392,84307.0,84306.0,0.91631477]
[1742095805052,0.01880392,84307.0,84306.0,0.78495477]
[1742095805250,0.01880392,84307.0,84306.0,0.91631477]
[1742095806701,0.01880392,84307.0,84306.0,0.90445377]
[1742095806906,0.01880392,84307.0,84306.0,0.91631477]
[1742095809831,0.01880392,84307.0,84306.0,0.91531477]
[1742095811666,0.01870462,84307.0,84306.0,0.91531477]
[1742095815892,0.01870462,84307.0,84306.0,0.90345377]
[1742095816101,0.01870462,84307.0,84306.0,0.91531477]
[1742095817583,0.01870462,84307.0,84306.0,0.16207477]
[1742095818694,0.01870462,84307.0,84306.0,0.01885377]
[1742095818934,0.03056562,84307.0,84306.0,0.15021377]
[1742095819100,0.0119725,84307.0,84306.0,0.15021377]
[1742095819509,0.02412366,84307.0,84306.0,0.14421377]
[1742095819714,0.0119725,84307.0,84306.0,0.14421377]
[1742095819902,0.0119725,84307.0,84306.0,0.14221377]
[1742095820301,0.0119725,84307.0,84306.0,0.14521377]
[1742095821265,0.024051,84307.0,84306.0,0.14121377]
[1742095821450,0.0119725,84307.0,84306.0,0.14121377]
[1742095821650,0.0119725,84307.0,84306.0,0.14421377]
[1742095822354,0.0305675,84307.0,84306.0,0.14421377]
[1742095822513,0.04242824,84307.0,84306.0,0.14421377]
[1742095823678,0.04242824,84307.0,84306.0,0.01285377]
[1742095823897,0.34242824,84307.0,84306.0,0.01285377]
[1742095824055,0.34242824,84307.0,84306.0,0.006]
[1742095824268,0.34242824,84307.0,84306.0,0.01381948]
[1742095824889,0.34242824,84307.0,84306.0,0.01415828]
[1742095825102,0.42162824,84307.0,84306.0,0.0063388]
[1742095825736,0.42162824,84307.0,84306.0,0.0033388]
[1742095826130,0.42162824,84307.0,84306.0,0.0023388]
[1742095826457,0.42162824,84307.0,84306.0,0.0043388]
[1742095827452,0.42162824,84307.0,84306.0,0.0023388]
[1742095827577,0.42162824,84307.0,84306.0,0.0043388]
[1742095836191,0.34242824,84307.0,84306.0,0.0043388]
[1742095839660,0.0187065,84307.0,84306.0,0.2534308]
[1742095839846,0.0187065,84307.0,84306.0,0.33685054]
[1742095840048,0.0001115,84307.0,84306.0,0.33685054]
[1742095840654,0.0001115,84307.0,84306.0,0.33485054]
[1742095841195,0.0001115,84307.0,84306.0,0.33285054]
[1742095841607,0.0001115,84307.0,84306.0,0.33485054]
[1742095841964,0.0001115,84307.0,84306.0,0.33285054]
[1742095842370,0.0001115,84307.0,84306.0,0.33885054]
[1742095842778,0.0001115,84307.0,84306.0,0.34085054]
[1742095843090,0.0001115,84307.0,84306.0,0.33885054]
[1742095843299,0.01870561,84307.0,84306.0,0.34485054]
[1742095851211,0.01870561,84307.0,84306.0,1.09809054]
[1742095853334,0.01870561,84307.0,84306.0,0.77339854]
[1742095853533,0.01870561,84307.0,84306.0,0.90475854]
[1742095854133,0.01870561,84307.0,84306.0,0.91661954]
[1742095854349,0.01870561,84307.0,84306.0,0.91061954]
[1742095854553,0.01870561,84307.0,84306.0,0.90475854]
[1742095854895,0.01870561,84307.0,84306.0,0.90975854]
[1742095855100,0.01870561,84307.0,84306.0,0.90375854]
[1742095855619,0.01870561,84307.0,84306.0,0.90975854]
[1742095856842,0.01870561,84307.0,84306.0,0.91061954]
[1742095857145,0.01870561,84307.0,84306.0,0.91561954]
[1742095860317,0.01870561,84307.0,84306.0,0.90375854]
[1742095860516,0.01870561,84307.0,84306.0,0.99531954]
[1742095860722,0.01870561,84307.0,84306.0,0.24207954]
[1742095864674,0.01870561,84307.0,84306.0,0.16237954]
[1742095867936,0.01870561,84307.0,84306.0,0.15051854]
[1742095874447,0.01870561,84307.0,84306.0,0.16237954]
[1742095875064,0.01870561,84307.0,84306.0,0.28867954]
[1742095876477,0.01870561,84307.0,84306.0,0.28267954]
[1742095876796,0.01870561,84307.0,84306.0,0.28867954]
[1742095876964,0.01870561,84307.0,84306.0,0.28367954]
[1742095877481,0.01870561,84307.0,84306.0,0.28967954]
[1742095882483,0.01870561,84307.0,84306.0,0.98967954]
[1742095884829,0.01870561,84307.0,84306.0,1.74283954]
[1742095891661,0.01870561,84307.0,84306.0,1.69723954]
[1742095892421,0.01870561,84307.0,84306.0,0.91653954]
[1742095899083,0.01870561,84307.0,84306.0,0.99383954]
[1742095899926,0.0001115,84307.0,84306.0,0.99383954]
[1742095901453,0.0001115,84307.0,84306.0,1.69383954]
[1742095903016,0.01870447,84307.0,84306.0,1.69383954]
[1742095903516,0.01870447,84307.0,84306.0,1.56247954]